Cogmind - Beta 13 @@@ ROGUE MODE // 2024.04.06 @ 17:16:30 Player: WindowsAttacker Result: Destroyed by G-47 Trooper with Particle Gun Performance ------------- Evolutions (2) 1000 Regions Visited (4) 800 Robots Destroyed (21) 105 Value Destroyed (519) 519 Prototype IDs (3) 60 Alien Tech Used (0) 0 Bonus (0) 0 TOTAL SCORE: 2484 Bonus ------- None Cogmind --------- Core Integrity 0/550 Matter 267/300 Energy 89/100 System Corruption 0% Temperature Cool (9) Movement Core (50) Location -8/Storage Parts ------- > --- POWER (1) -------- (None) > --- PROPULSION (4) --- (None) > --- UTILITY (3) ------ Improved Signal Interpreter Power Shielding > --- WEAPON (3) ------- Light Assault Rifle > --- INVENTORY (5) ---- Light Ion Engine Light Deuterium Engine Improved Treads Peak State ------------ > --- POWER ------------ Ion Engine > --- PROPULSION ------- Flight Unit Flight Unit Flight Unit Flight Unit > --- UTILITY ---------- Sensor Array Improved Signal Interpreter Power Shielding > --- WEAPON ----------- Medium Laser Heavy Assault Rifle Enhanced Autogun > --- INVENTORY -------- Improved Treads Light Assault Rifle [Rating: 17] Favorites ----------- Power Ion Engine Engine Ion Engine Propulsion Flight Unit Wheel Wheel Flight Unit Flight Unit Utility Power Shielding Device Sensor Array Storage Small Storage Unit Processor Improved Signal Interpreter Protection Power Shielding Weapon Medium Laser Energy Gun Medium Laser Ballistic Gun Heavy Assault Rifle Slashing Weapon Axe Build | -11 -10 -9 -8 -8 ------- Run | Yrd Mat Mat Mat Sto Slots Evolved 4 | . . 2 2 . Power . | . . . . . Propulsion 2 | . . 1 1 . Utility 1 | . . 1 . . Weapon 1 | . . . 1 . Parts Attached 24 | 6 3 4 4 7 Power 1 | 1 . . . . Engine 1 | 1 . . . . Core . | . . . . . Reactor . | . . . . . Propulsion 8 | 2 . 3 1 2 Treads . | . . . . . Leg . | . . . . . Wheel 4 | 2 . . . 2 Hover . | . . . . . Flight 4 | . . 3 1 . Utility 6 | 1 3 . 2 . Device 1 | . 1 . . . Storage 3 | 1 1 . 1 . Processor 1 | . . . 1 . Hackware . | . . . . . Protection 1 | . 1 . . . Artifact . | . . . . . Weapon 9 | 2 . 1 1 5 Energy Gun 2 | 2 . . . . Energy Cannon . | . . . . . Ballistic Gun 6 | . . 1 1 4 Ballistic Cannon . | . . . . . Launcher . | . . . . . Special Weapon . | . . . . . Impact Weapon . | . . . . . Slashing Weapon 1 | . . . . 1 Piercing Weapon . | . . . . . Special Melee Weapon . | . . . . . Unidentified Prototypes 1 | . . . . 1 Parts Lost 13 | . . . . 13 Power 1 | . . . . 1 Propulsion 5 | . . . . 5 Utility 1 | . . . . 1 Weapon 6 | . . . . 6 Highest Loss Streak 11 | . . . . 11 To Critical Strikes . | . . . . . Average Slot Usage (%) 87 | . 99 84 97 71 Engine 9 | . 14 11 9 2 Wheel 13 | . 28 6 . 4 Flight 14 | . . 23 36 19 Device 8 | . 8 11 9 6 Storage 3 | . 10 . . . Processor 3 | . . . 6 9 Protection 9 | . 8 11 9 9 Energy Gun 17 | . 28 16 9 6 Ballistic Gun 6 | . . 5 18 12 Naked Turns . | . . . . . Heaviest Build 14 | 13 14 12 13 13 Greatest Support 32 | 20 20 20 16 32 Greatest Overweight (x) 1 | . . 1 . 1 Average Overweight (x) . | . . . . . Largest Inventory Capacity 8 | 8 8 5 8 5 Average Capacity 5 | 6 6 5 5 5 Most Carried 5 | 5 3 5 4 4 Average Carried 2 | 1 2 4 2 2 Final Capacity 8 | 8 5 5 5 5 Final Carried 5 | 1 3 5 3 3 Class Distribution -------------------- 61% | Mutant 15% | Scavenger-Sprinter 12% | Scavenger-Mutant 10% | Scavenger-Skirmisher Dominant Class ---------------- Mutant | -10/Materials Scavenger-Mutant | -9/Materials Scavenger-Sprinter | -8/Materials Scavenger-Skirmisher | -8/Storage Resources | -11 -10 -9 -8 -8 ----------- Run | Yrd Mat Mat Mat Sto Matter Collected 625 | 237 13 148 64 163 Remotely . | . . . . . Salvage Created 737 | . 13 185 92 447 Parts 52 | . 4 18 6 24 Haulers Intercepted . | . . . . . Recyclers Shooed 3 | . . . . 3 Parts Field Recycled . | . . . . . Retrieved Matter . | . . . . . Parts Self-Destructed . | . . . . . Prevented . | . . . . . Kills | -11 -10 -9 -8 -8 ------- Run | Yrd Mat Mat Mat Sto Combat Hostiles Destroyed 16 | . . 9 1 6 Guns 16 | . . 9 1 6 Classes Destroyed 7 | . 1 2 . 4 Worker 1 | . . . . 1 Recycler 1 | . . . . 1 Watcher 3 | . 1 . 1 1 Swarmer 8 | . . 8 . . Grunt 2 | . . . . 2 Duelist 1 | . . . . 1 Sentry 5 | . . 1 1 3 Best Kill Streak 5 | . 1 4 1 5 Combat Bots Only 4 | . . 4 1 3 Max Kills in Single Turn 2 | . 1 2 1 1 Gunslinging 1 | . . 1 . . Exploded . | . . . . . Melee . | . . . . . Uniques/NPCs Destroyed . | . . . . . Combat | -11 -10 -9 -8 -8 -------- Run | Yrd Mat Mat Mat Sto Hostile Shots Fired 132 | . . 21 8 103 Missed 38 | . . 4 3 31 Damage Taken 1440 | . . 156 71 1213 Core 609 | . . 47 27 535 Absorbed by Shields . | . . . . . Redirected to Shielding 28 | . . 9 . 19 Core Remaining (%) 96 | 100 100 88 . . Volleys Fired 65 | . 5 11 6 43 Largest 3 | . 2 2 3 3 Hottest 98 | . 90 90 93 98 Shots Fired 139 | . 9 22 18 90 Gun 139 | . 9 22 18 90 Cannon . | . . . . . Launcher . | . . . . . Special . | . . . . . Kinetic 80 | . . 6 12 62 Thermal 59 | . 9 16 6 28 Explosive . | . . . . . Electromagnetic . | . . . . . Robot Hit Streak 12 | . 4 5 5 12 Robot Miss Streak 7 | . 2 2 5 7 Penetration Max . | . . . . . Secondary Targets 5 | . . 3 . 2 Max Gunslinging Chain 1 | . . 1 . 1 Shots Hit Robots 88 | . 6 15 9 58 Core Hits 37 | . 2 10 4 21 Critical Kills 1 | . . . . 1 Critical Parts Destroyed 1 | . . . . 1 Critical Strikes 3 | . . . . 3 Destroy 2 | . . . . 2 Sever 1 | . . . . 1 Melee Attacks 6 | . . . . 6 Impact . | . . . . . Slashing 6 | . . . . 6 Piercing . | . . . . . Sneak Attacks . | . . . . . Combat Hostiles . | . . . . . Follow-up Attacks . | . . . . . Damage Inflicted 1273 | . 74 209 103 887 Guns 1103 | . 74 209 103 717 Cannons . | . . . . . Explosions . | . . . . . Melee 170 | . . . . 170 Ramming . | . . . . . Kinetic 634 | . . 62 66 506 Thermal 469 | . 74 147 37 211 Explosive . | . . . . . Electromagnetic . | . . . . . Impact . | . . . . . Slashing 170 | . . . . 170 Piercing . | . . . . . Highest Corruption . | . . . . . Average Corruption . | . . . . . Corruption Purged . | . . . . . Corruption Blocked . | . . . . . Overload Shots . | . . . . . Overflow Damage . | . . . . . Projectiles . | . . . . . Explosions . | . . . . . Melee . | . . . . . Knockbacks . | . . . . . Impact . | . . . . . Kinetic . | . . . . . Secondary . | . . . . . Self-Inflicted Damage . | . . . . . Shots . | . . . . . Rammed . | . . . . . Targets Rammed . | . . . . . Kicked . | . . . . . Crushed . | . . . . . Highest Temperature 512 | . 90 69 134 512 Average Temperature 115 | . 36 38 65 177 Received Heat Transfer 549 | . . 9 54 486 Effects 5 | . . . . 5 Shutdowns 1 | . . . . 1 Matter Decay 1 | . . . . 1 Damage (major) 3 | . . . . 3 Siege Activations . | . . . . . Robots Corrupted . | . . . . . Combat Hostiles . | . . . . . Parts Fried . | . . . . . Impact Corruptions . | . . . . . Robots Melted . | . . . . . Combat Hostiles . | . . . . . Parts Melted 1 | . . 1 . . Heat Transferred 1334 | . 198 396 111 629 Parts Sabotaged . | . . . . . Parts Stolen . | . . . . . Parts Stripped . | . . . . . Power Chain Reactions . | . . . . . Alert | -11 -10 -9 -8 -8 ------- Run | Yrd Mat Mat Mat Sto Peak Influence 171 | . 51 156 116 171 Initial 48 | . . 21 40 48 Average 56 | . 11 71 67 118 Maximum Alert Level . | . . . . . Low Security (%) 100 | 100 100 100 100 100 Level 1 . | . . . . . Level 2 . | . . . . . Level 3 . | . . . . . Level 4 . | . . . . . Level 5 . | . . . . . High Security . | . . . . . Max Security . | . . . . . Squads Dispatched 6 | . . 1 2 3 Investigation 1 | . . . . 1 Extermination . | . . . . . Reinforcement 4 | . . 1 1 2 Assault . | . . . . . Garrison 1 | . . . 1 . Intercept . | . . . . . Searches Triggered . | . . . . . Construction Impeded 1 | . . . . 1 Haulers Reinforced . | . . . . . Active Scanning Responses . | . . . . . Cargo Convoy Interrupts . | . . . . . Stealth | -11 -10 -9 -8 -8 --------- Run | Yrd Mat Mat Mat Sto Distress Signals 2 | . . . 1 1 Communications Jammed . | . . . . . Distress Signals . | . . . . . Times Spotted 34 | . 2 10 5 17 Peak Tracking Total 7 | . 1 6 3 7 Tactical Retreats . | . . . . . Traps | -11 -10 -9 -8 -8 ------- Run | Yrd Mat Mat Mat Sto Traps Triggered . | . . . . . Indirectly . | . . . . . Trap Hack Attempts . | . . . . . Triggered . | . . . . . Disarmed . | . . . . . Reprogrammed 1 | . 1 . . . Reused . | . . . . . Traps Extracted . | . . . . . Installed . | . . . . . Triggered . | . . . . . Machines | -11 -10 -9 -8 -8 ---------- Run | Yrd Mat Mat Mat Sto Machines Disabled . | . . . . . Max in Single Turn . | . . . . . Machines Repaired . | . . . . . Machines Dismantled . | . . . . . Machines Sabotaged . | . . . . . Overloaded Fab Kills . | . . . . . Hacking | -11 -10 -9 -8 -8 --------- Run | Yrd Mat Mat Mat Sto Machines Accessed 11 | . 5 3 2 1 Terminals 10 | . 5 2 2 1 Fabricators . | . . . . . Repair Stations . | . . . . . Recycling Units . | . . . . . Scanalyzers 1 | . . 1 . . Garrison Access . | . . . . . Total Hacks 21 | . 10 5 4 2 Successful 13 | . 7 3 3 . Failed 8 | . 3 2 1 2 Catastrophic 2 | . 1 . . 1 Database Lockouts . | . . . . . Manual . | . . . . . Terminals 19 | . 10 3 4 2 Fabricators . | . . . . . Repair Stations . | . . . . . Recycling Units . | . . . . . Scanalyzers 2 | . . 2 . . Garrison Access . | . . . . . Terminal Hacks 11 | . 7 1 3 . Prototype ID Bank 1 | . 1 . . . Branch Access Points 1 | . 1 . . . Recycling Unit Index 1 | . . . 1 . Unreport Threat 1 | . . 1 . . Locate Traps 4 | . 3 . 1 . Reprogram Traps 1 | . 1 . . . Hauler Manifests 1 | . 1 . . . Zone Layout 1 | . . . 1 . Fabricator Hacks . | . . . . . Repair Station Hacks . | . . . . . Recycling Unit Hacks . | . . . . . Scanalyzer 2 | . . 2 . . Insert Component 1 | . . 1 . . Analyze 1 | . . 1 . . Garrison Access Hacks . | . . . . . Unauthorized Hacks . | . . . . . Terminals . | . . . . . Fabricators . | . . . . . Repair Stations . | . . . . . Recycling Units . | . . . . . Scanalyzers . | . . . . . Garrison Access . | . . . . . Data Cores Recovered . | . . . . . Used . | . . . . . Hacking Detections 8 | . 3 3 1 1 Full Trace Events 1 | . . . . 1 Feedback Events . | . . . . . Feedback Blocked . | . . . . . Robot Schematics Acquired . | . . . . . Robots Built . | . . . . . Authchips . | . . . . . Time . | . . . . . Total Robot Build Rating . | . . . . . Part Schematics Acquired 1 | . . 1 . . Parts Built . | . . . . . Authchips . | . . . . . Time . | . . . . . Total Part Build Rating . | . . . . . Parts Repaired . | . . . . . Time . | . . . . . Parts Recycled . | . . . . . Recycled Matter . | . . . . . Retrieved Matter . | . . . . . Retrieved Components . | . . . . . Parts Scanalyzed 1 | . . 1 . . Part Schematics Acquired 1 | . . 1 . . Parts Damaged . | . . . . . Bothacking | -11 -10 -9 -8 -8 ------------ Run | Yrd Mat Mat Mat Sto Used RIF Installer . | . . . . . Robots Hacked . | . . . . . Non-combat . | . . . . . Combat . | . . . . . Robot Hacks Applied . | . . . . . Relay Couplers Released . | . . . . . Fabnet Peak Effective % . | . . . . . Robots Rewired . | . . . . . Allies Hacked . | . . . . . Hacks Repelled . | . . . . . Allies | -11 -10 -9 -8 -8 -------- Run | Yrd Mat Mat Mat Sto Total Allies . | . . . . . Largest Group . | . . . . . Highest-Rated Group . | . . . . . Highest-Rated Ally . | . . . . . Total Orders . | . . . . . Ally Attacks . | . . . . . Total Damage . | . . . . . Kills . | . . . . . Allies Corrupted . | . . . . . Allies Melted . | . . . . . Intel | -11 -10 -9 -8 -8 ------- Run | Yrd Mat Mat Mat Sto Robot Analysis Total . | . . . . . Derelict Logs Recovered . | . . . . . Drone Launches . | . . . . . Drone Recoveries . | . . . . . Exploration | -11 -10 -9 -8 -8 ------------- Run | Yrd Mat Mat Mat Sto Turns Passed 714 | 62 248 142 70 192 Spaces Moved 824 | 59 284 219 145 117 Core 13 | 3 . . . 10 Treads . | . . . . . Legs . | . . . . . Wheels 396 | 56 284 33 . 23 Hover . | . . . . . Flight 415 | . . 186 145 84 Fastest Speed 31 | 50 80 34 31 31 Average Speed 56 | 78 80 41 31 47 Slowest Speed 117 | 80 80 117 31 100 Overloaded Moves . | . . . . . Propulsion Burnouts . | . . . . . Robots Hopped 5 | . . 1 3 1 Cave-ins Triggered . | . . . . . Exploration Rate (%) 20 | 3 39 19 14 26 Regions Visited 4 Branch Regions 1 Pre-discovered Areas . | . . . . . Known Exits Taken 1 | . . . 1 . Unknown Exits Taken 3 | 1 1 1 . . Scrap Searched . | . . . . . Spaces Dug . | . . . . . Terrain Destroyed . | . . . . . Melee . | . . . . . Projectile . | . . . . . AOE . | . . . . . Terrain Rammed . | . . . . . Walls Destroyed . | . . . . . Machines Disabled . | . . . . . Actions | -11 -10 -9 -8 -8 --------- Run | Yrd Mat Mat Mat Sto Total 950 | 74 294 247 154 181 Wait 7 | 3 . 4 . . Move 811 | 58 283 216 139 115 Hop 4 | . . 1 2 1 Pick Up 26 | 7 3 7 2 7 Fast Attach . | . . . . . Attach 20 | 6 1 2 4 7 Detach . | . . . . . Swap 4 | . 2 2 . . Drop 7 | . . 4 1 2 Fire 65 | . 5 11 6 43 Melee 6 | . . . . 6 Ram . | . . . . . Kick . | . . . . . Crush . | . . . . . Escape Stasis . | . . . . . Rewire . | . . . . . Trap . | . . . . . Miscellaneous . | . . . . . Route ------- -11/Scrapyard -10/Materials (discovered 2 exits: *Mat / Min) -9/Materials -8/Materials -8/Storage History --------- Turn | Location | Event 10 | -11/Scrapyard | Discovered new exit (range 15) 63 | -11/Scrapyard | Entered Materials 297 | -10/Materials | Discovered new exit (range 16) 302 | -10/Materials | Build established: Mutant 304 | -10/Materials | Identified exit to Mines 311 | -10/Materials | Entered another Materials area 311 | -9/Materials | Evolved 2 slots: Propulsion x1, Utility x1 417 | -9/Materials | Discovered new exit (range 15) 453 | -9/Materials | Entered another Materials area 453 | -8/Materials | Evolved 2 slots: Propulsion x1, Weapon x1 464 | -8/Materials | Garrison activated, responded to threat 502 | -8/Materials | Discovered new exit (range 16) 522 | -8/Materials | Identified exit to Storage 523 | -8/Materials | Entered Storage 680 | -8/Storage | Core integrity fell below 50% 698 | -8/Storage | Core integrity fell below 20% 715 | -8/Storage | Destroyed by G-47 Trooper with Particle Gun Last Messages --------------- Y-45 Defender destroyed. U-05 Engineer lays Concrete. Lgt. Assault Rifle destroyed. U-05 Engineer lays Concrete. Acquired 9 matter. U-05 Engineer lays Concrete. Acquired Lgt. Ion Engine. U-05 Engineer lays Concrete. Acquired Lgt. Assault Rifle. U-05 Engineer lays Concrete. Y-45 Defender destroyed. U-05 Engineer lays Concrete. The unstable cave ceiling collapses. R-06 Scavenger collects Wheel. U-05 Engineer lays Concrete. Lgt. Assault Rifle destroyed. U-05 Engineer lays Concrete. Acquired Lgt. Assault Rifle. R-06 Scavenger collects Wheel. U-05 Engineer lays Concrete. Map ----- +----------------------------------------------------+ | ????????????????????????????????????????# #????? | | ????????????????????????????????????????# #??"T? | | ????????????????????????????????????????# #? | | ????????????????????????????????????????# #?""" | | ????????????????????????????????????????# # """ | | ????????????????????????????????????##### # """ | | ????????????????????????????????????# + / | | ???????????????????????????????????#T # # """ | | ???????????????????????????????????##""## # """ | | ????????????????????????????????????????# #?""" | | ????????????????????????????????????????# #? | | ????????????????????????????????????????# ##"##? | | ????????????????????????????????????????# #?? | | ????????????????????????????????????????# #?? | | ????????????????????????????????????????# ### | | ????????????????????????????????????????# | | ??????????????#???????????#####?????????# | | ??????????????? ???????### # ####??????#! = | | ???????????????? ?????## # # ##?????#[ = | | ?????????????????? ???## ########% [###### | | ??????????????????? ?# % #????? | | ?????????# #####+##+# g= r ########/##????? | | ?????????# #g% % #?????? ????? | | ?????????# g!*! u #??????""" ???? | | ?????????# #% ##????? """ ??? | | ????????????######+#####*@= #?????? """ #?? | | ???????????????????????#!%! #????? #?? | | ???????????????????????# #########????? """"" +?? | | ???????????????????????###????????????# """"" #?? | | ??????????????????????????????????????# ?????? #?? | | ??????????????????????????????????????# ?????????? | | ?????????????????????????????????????????????????? | | ?????????????????????????????????????????????????? | | ?????????????????????????????????????????????????? | | ?????????????????????????????????????????????????? | | ?????????????????????????????????????????????????? | | | | | | | | | | | | | | | | | | | | | | | | | | | | | +----------------------------------------------------+ Best States ------------- Heat Dissipation 31 Energy Generation 10 Energy Capacity 250 Matter Stores 300 Matter Capacity 350 Sight Range 16 Robot Scan Range 14 Terrain Scan Density 10 Power Shielding 33 Evasion (%) 63 Item Schematics ----------------- Lgt. Assault Rifle | -9/Materials | Scanalyzed Robot Schematics ------------------ None Fabricated ------------ Nothing Alien Tech Used ----------------- None Achievements -------------- Everything Is Under Control Shopping List Troublemaker Challenges ------------ None Game ------ Seed WardroneThermicBank Manual? 0 Play Time 00:16:58 Cumulative 1.5 hours Start 2024.04.06 @ 17:02:01 End 2024.04.06 @ 17:16:30 Sessions 1 Manual Loads 0 Difficulty Rogue Special Mode None Game No. 4 Rogue 3 Adventurer 1 Explorer 0 Win Type - Total 0 Types 0/0/0/0/0/0/0/0/0 Lore% 5 Gallery% 5 Achievement% 7 Wizard Run 0 Options --------- Layout 0 ASCII 0 Keyboard 0 Movement Arrows Keybinds 0 Fullscreen 1 Font 18/SmallcapsGlow Map View 76x50 Zoom Use 0% Tactical HUD 0 Map Filters NONE Filters NONE Steam 1 RUN: 23e35db6-73fa-4e41-81e2-f3ba1163b69e